Cogmind - Beta 13 @@@ ROGUE MODE // 2024.04.09 @ 21:21:46 Player: Sightsear Result: Destroyed by D-53 Grenadier with Mini Grenade Launcher Performance ------------- Evolutions (0) 0 Regions Visited (4) 800 Robots Destroyed (4) 20 Value Destroyed (36) 36 Prototype IDs (23) 460 Alien Tech Used (0) 0 Bonus (281) 281 TOTAL SCORE: 1597 Bonus ------- Aligned with FarCom 300 Friendly Fire -19 Cogmind --------- Core Integrity 0/250 Matter 255/300 Energy 99/100 System Corruption 0% Temperature Cool (0) Movement Core (100) Ox1 Location -9/Mines Parts ------- > --- POWER (1) -------- (None) > --- PROPULSION (2) --- (None) > --- UTILITY (2) ------ Small Storage Unit Signal Interpreter > --- WEAPON (2) ------- (None) > --- INVENTORY (8) ---- Wheel Terrain Scanner Improved Terrain Scanner Cloak of Protection Small Laser Mining Laser Peak State ------------ > --- POWER ------------ Light Ion Engine > --- PROPULSION ------- Wheel Compact Wheel > --- UTILITY ---------- Small Storage Unit Improved Terrain Scanner > --- WEAPON ----------- EM Pulse Gun EM Pulse Gun > --- INVENTORY -------- Light Ion Engine Wheel Wheel Small Laser [Rating: 9] Favorites ----------- Power Light Ion Engine Engine Light Ion Engine Propulsion Wheel Wheel Wheel Utility Small Storage Unit Device Improved Terrain Scanner Storage Small Storage Unit Processor Signal Interpreter Weapon EM Pulse Gun Energy Gun EM Pulse Gun Launcher Grenade Launcher Build | -11 -10 -10 -10 -9 ------- Run | Yrd Mat Min Exi Min Slots Evolved . | . . . . . Power . | . . . . . Propulsion . | . . . . . Utility . | . . . . . Weapon . | . . . . . Parts Attached 14 | 8 2 . . 4 Power 2 | 1 . . . 1 Engine 2 | 1 . . . 1 Core . | . . . . . Reactor . | . . . . . Propulsion 3 | 3 . . . . Treads . | . . . . . Leg . | . . . . . Wheel 3 | 3 . . . . Hover . | . . . . . Flight . | . . . . . Utility 3 | 2 1 . . . Device 1 | 1 . . . . Storage 1 | 1 . . . . Processor 1 | . 1 . . . Hackware . | . . . . . Protection . | . . . . . Artifact . | . . . . . Weapon 6 | 2 1 . . 3 Energy Gun 4 | 2 . . . 2 Energy Cannon . | . . . . . Ballistic Gun . | . . . . . Ballistic Cannon . | . . . . . Launcher 2 | . 1 . . 1 Special Weapon . | . . . . . Impact Weapon . | . . . . . Slashing Weapon . | . . . . . Piercing Weapon . | . . . . . Special Melee Weapon . | . . . . . Unidentified Prototypes . | . . . . . Parts Lost 7 | . . . . 7 Power 2 | . . . . 2 Propulsion 2 | . . . . 2 Utility . | . . . . . Weapon 3 | . . . . 3 Highest Loss Streak 7 | . . . . 7 To Critical Strikes . | . . . . . Average Slot Usage (%) 98 | . 100 100 100 82 Engine 13 | . 14 14 14 10 Wheel 27 | . 28 28 28 21 Storage 14 | . 14 14 14 14 Processor 13 | . 2 14 14 14 Energy Gun 14 | . 18 14 14 14 Launcher 13 | . 10 14 14 6 Naked Turns . | . . . . . Heaviest Build 14 | 13 14 13 13 13 Greatest Support 26 | 26 26 26 26 26 Greatest Overweight (x) 1 | . . . . 1 Average Overweight (x) . | . . . . . Largest Inventory Capacity 8 | 8 8 8 8 8 Average Capacity 7 | 6 8 8 8 8 Most Carried 8 | 5 8 8 8 8 Average Carried 7 | 3 6 8 7 7 Final Capacity 8 | 8 8 8 8 8 Final Carried 8 | 5 8 8 8 6 Class Distribution -------------------- 100% | Mutant Dominant Class ---------------- Mutant | -10/Materials Mutant | -10/Mines Mutant | -10/Exiles Mutant | -9/Mines Resources | -11 -10 -10 -10 -9 ----------- Run | Yrd Mat Min Exi Min Matter Collected 360 | 280 20 . 10 50 Remotely . | . . . . . Salvage Created 244 | 136 66 . . 42 Parts 13 | 11 2 . . . Haulers Intercepted . | . . . . . Recyclers Shooed . | . . . . . Parts Field Recycled . | . . . . . Retrieved Matter . | . . . . . Parts Self-Destructed . | . . . . . Prevented . | . . . . . Kills | -11 -10 -10 -10 -9 ------- Run | Yrd Mat Min Exi Min Combat Hostiles Destroyed 8 | . . . . 8 Guns 2 | . . . . 2 AOE 6 | . . . . 6 Classes Destroyed 4 | 2 1 . . 1 Tunneler 2 | 2 . . . . Recycler 1 | 1 . . . . Watcher 1 | . 1 . . . Assembled 8 | . . . . 8 Best Kill Streak 6 | 3 1 . . 6 Combat Bots Only 6 | . . . . 6 Max Kills in Single Turn 2 | 1 1 . . 2 Gunslinging . | . . . . . Exploded 2 | . . . . 2 Melee . | . . . . . Uniques/NPCs Destroyed . | . . . . . Combat | -11 -10 -10 -10 -9 -------- Run | Yrd Mat Min Exi Min Hostile Shots Fired 21 | . . . . 21 Missed 3 | . . . . 3 Damage Taken 619 | . . . . 619 Core 259 | . . . . 259 Absorbed by Shields . | . . . . . Core Remaining (%) 100 | 100 . . . . Volleys Fired 25 | 6 2 . . 17 Largest 2 | 2 1 . . 2 Hottest 80 | 80 40 . . 80 Shots Fired 39 | 12 2 . . 25 Gun 29 | 12 1 . . 16 Cannon . | . . . . . Launcher 10 | . 1 . . 9 Special . | . . . . . Kinetic . | . . . . . Thermal . | . . . . . Explosive 10 | . 1 . . 9 Electromagnetic 29 | 12 1 . . 16 Robot Hit Streak 5 | 5 3 . . 5 Robot Miss Streak 3 | 2 . . . 3 Penetration Max . | . . . . . Secondary Targets 1 | . . . . 1 Max Gunslinging Chain 1 | . . . . 1 Shots Hit Robots 23 | 7 2 . . 14 Core Hits 27 | 3 2 . . 22 Critical Kills . | . . . . . Critical Parts Destroyed . | . . . . . Critical Strikes . | . . . . . Melee Attacks . | . . . . . Impact . | . . . . . Slashing . | . . . . . Piercing . | . . . . . Sneak Attacks . | . . . . . Combat Hostiles . | . . . . . Follow-up Attacks . | . . . . . Damage Inflicted 742 | 90 56 . . 596 Guns 203 | 90 13 . . 100 Cannons . | . . . . . Explosions 539 | . 43 . . 496 Melee . | . . . . . Ramming . | . . . . . Kinetic . | . . . . . Thermal . | . . . . . Explosive 539 | . 43 . . 496 Electromagnetic 203 | 90 13 . . 100 Impact . | . . . . . Slashing . | . . . . . Piercing . | . . . . . Highest Corruption . | . . . . . Average Corruption . | . . . . . Corruption Purged . | . . . . . Corruption Blocked . | . . . . . Overload Shots . | . . . . . Overflow Damage 8 | . . . . 8 Projectiles . | . . . . . Explosions 8 | . . . . 8 Melee . | . . . . . Knockbacks . | . . . . . Impact . | . . . . . Kinetic . | . . . . . Secondary . | . . . . . Self-Inflicted Damage 26 | . . . . 26 Shots 2 | . . . . 2 Rammed . | . . . . . Targets Rammed . | . . . . . Kicked . | . . . . . Crushed . | . . . . . Highest Temperature 153 | 54 . . . 153 Average Temperature 54 | 23 . . . 72 Received Heat Transfer 9 | . . . . 9 Siege Activations . | . . . . . Robots Corrupted . | . . . . . Combat Hostiles . | . . . . . Parts Fried . | . . . . . Impact Corruptions . | . . . . . Robots Melted . | . . . . . Combat Hostiles . | . . . . . Parts Melted . | . . . . . Heat Transferred . | . . . . . Parts Sabotaged . | . . . . . Parts Stolen . | . . . . . Parts Stripped . | . . . . . Power Chain Reactions . | . . . . . Alert | -11 -10 -10 -10 -9 ------- Run | Yrd Mat Min Exi Min Peak Influence 29 | 15 29 10 . 7 Initial 10 | . 9 10 . . Average 8 | 6 20 10 . . Maximum Alert Level . | . . . . . Low Security (%) 100 | 100 100 100 . 100 Level 1 . | . . . . . Level 2 . | . . . . . Level 3 . | . . . . . Level 4 . | . . . . . Level 5 . | . . . . . High Security . | . . . . . Max Security . | . . . . . Squads Dispatched 1 | . 1 . . . Investigation 1 | . 1 . . . Extermination . | . . . . . Reinforcement . | . . . . . Assault . | . . . . . Garrison . | . . . . . Intercept . | . . . . . Searches Triggered . | . . . . . Construction Impeded . | . . . . . Haulers Reinforced . | . . . . . Active Scanning Responses . | . . . . . Cargo Convoy Interrupts . | . . . . . Stealth | -11 -10 -10 -10 -9 --------- Run | Yrd Mat Min Exi Min Distress Signals . | . . . . . Communications Jammed . | . . . . . Distress Signals . | . . . . . Times Spotted 23 | . 1 . . 22 Peak Tracking Total 10 | . 1 . . 10 Tactical Retreats . | . . . . . Traps | -11 -10 -10 -10 -9 ------- Run | Yrd Mat Min Exi Min Traps Triggered . | . . . . . Indirectly . | . . . . . Trap Hack Attempts . | . . . . . Triggered . | . . . . . Disarmed . | . . . . . Reprogrammed . | . . . . . Reused . | . . . . . Traps Extracted . | . . . . . Installed . | . . . . . Triggered . | . . . . . Machines | -11 -10 -10 -10 -9 ---------- Run | Yrd Mat Min Exi Min Machines Disabled . | . . . . . Max in Single Turn . | . . . . . Machines Repaired . | . . . . . Machines Dismantled . | . . . . . Machines Sabotaged . | . . . . . Overloaded Fab Kills . | . . . . . Hacking | -11 -10 -10 -10 -9 --------- Run | Yrd Mat Min Exi Min Machines Accessed 6 | . 1 . 5 . Terminals . | . . . . . Fabricators . | . . . . . Repair Stations . | . . . . . Recycling Units 1 | . 1 . . . Scanalyzers . | . . . . . Garrison Access . | . . . . . Total Hacks 53 | . 3 . 50 . Successful 50 | . . . 50 . Failed 3 | . 3 . . . Catastrophic . | . . . . . Database Lockouts . | . . . . . Manual 1 | . . . 1 . Terminals . | . . . . . Fabricators . | . . . . . Repair Stations . | . . . . . Recycling Units 3 | . 3 . . . Scanalyzers . | . . . . . Garrison Access . | . . . . . Terminal Hacks 50 | . . . 50 . Record 49 | . . . 49 . Derelict Proto ID Bank 1 | . . . 1 . Fabricator Hacks . | . . . . . Repair Station Hacks . | . . . . . Recycling Unit Hacks . | . . . . . Scanalyzer . | . . . . . Garrison Access Hacks . | . . . . . Unauthorized Hacks . | . . . . . Terminals . | . . . . . Fabricators . | . . . . . Repair Stations . | . . . . . Recycling Units . | . . . . . Scanalyzers . | . . . . . Garrison Access . | . . . . . Data Cores Recovered . | . . . . . Used . | . . . . . Hacking Detections 1 | . 1 . . . Full Trace Events 1 | . 1 . . . Feedback Events . | . . . . . Feedback Blocked . | . . . . . Robot Schematics Acquired . | . . . . . Robots Built . | . . . . . Authchips . | . . . . . Time . | . . . . . Total Robot Build Rating . | . . . . . Part Schematics Acquired . | . . . . . Parts Built . | . . . . . Authchips . | . . . . . Time . | . . . . . Total Part Build Rating . | . . . . . Parts Repaired . | . . . . . Time . | . . . . . Parts Recycled . | . . . . . Recycled Matter . | . . . . . Retrieved Matter . | . . . . . Retrieved Components . | . . . . . Parts Scanalyzed . | . . . . . Part Schematics Acquired . | . . . . . Parts Damaged . | . . . . . Bothacking | -11 -10 -10 -10 -9 ------------ Run | Yrd Mat Min Exi Min Used RIF Installer . | . . . . . Robots Hacked . | . . . . . Non-combat . | . . . . . Combat . | . . . . . Robot Hacks Applied . | . . . . . Relay Couplers Released . | . . . . . Fabnet Peak Effective % . | . . . . . Robots Rewired . | . . . . . Allies Hacked . | . . . . . Hacks Repelled . | . . . . . Allies | -11 -10 -10 -10 -9 -------- Run | Yrd Mat Min Exi Min Total Allies 5 | . . 3 . 2 Largest Group 5 | . . 3 3 5 Highest-Rated Group 84 | . . 40 40 84 Highest-Rated Ally 31 | . . 16 16 31 Total Orders . | . . . . . Ally Attacks 44 | . . . . 44 Total Damage 508 | . . . . 508 Kills 10 | . . . . 10 Allies Corrupted . | . . . . . Allies Melted . | . . . . . Intel | -11 -10 -10 -10 -9 ------- Run | Yrd Mat Min Exi Min Robot Analysis Total . | . . . . . Derelict Logs Recovered 1 | . . 1 . . Drone Launches . | . . . . . Drone Recoveries . | . . . . . Exploration | -11 -10 -10 -10 -9 ------------- Run | Yrd Mat Min Exi Min Turns Passed 1357 | 95 65 211 892 94 Spaces Moved 1401 | 71 60 233 988 49 Core 31 | 11 . . . 20 Treads . | . . . . . Legs . | . . . . . Wheels 1370 | 60 60 233 988 29 Hover . | . . . . . Flight . | . . . . . Fastest Speed 50 | 50 90 90 90 90 Average Speed 89 | 79 90 90 90 94 Slowest Speed 100 | 90 90 90 90 100 Overloaded Moves . | . . . . . Propulsion Burnouts . | . . . . . Robots Hopped . | . . . . . Cave-ins Triggered . | . . . . . Exploration Rate (%) 37 | 5 18 51 94 21 Regions Visited 4 Branch Regions 3 Pre-discovered Areas 2 | . . 1 1 . Known Exits Taken 3 | . 1 1 1 . Unknown Exits Taken 1 | 1 . . . . Scrap Searched 1 | . . 1 . . Spaces Dug . | . . . . . Terrain Destroyed 52 | . 8 . . 44 Melee . | . . . . . Projectile . | . . . . . AOE 52 | . 8 . . 44 Terrain Rammed . | . . . . . Walls Destroyed . | . . . . . Machines Disabled . | . . . . . Actions | -11 -10 -10 -10 -9 --------- Run | Yrd Mat Min Exi Min Total 1459 | 96 67 234 991 71 Wait 4 | . . 2 1 1 Move 1397 | 70 59 232 987 49 Hop . | . . . . . Pick Up 16 | 12 3 . 1 . Fast Attach . | . . . . . Attach 9 | 7 . . . 2 Detach . | . . . . . Swap 5 | 1 2 . . 2 Drop 1 | . . . 1 . Fire 25 | 6 2 . . 17 Melee . | . . . . . Ram . | . . . . . Kick . | . . . . . Crush . | . . . . . Escape Stasis . | . . . . . Rewire 2 | . 1 . 1 . Trap . | . . . . . Miscellaneous . | . . . . . Route ------- -11/Scrapyard -10/Materials -10/Mines -10/Exiles (discovered 2 exits: *Min x2) -9/Mines History --------- Turn | Location | Event 6 | -11/Scrapyard | Discovered new exit (range 16) 96 | -11/Scrapyard | Entered Materials 141 | -10/Materials | Discovered new exit (range 11) 160 | -10/Materials | Identified exit to Mines 161 | -10/Materials | Entered Mines 166 | -10/Mines | Met a Derelict bent on vengeance 167 | -10/Mines | Assisted by bots powering up and referring to "LRC-V3" 281 | -10/Mines | Learned location of Zion (-7) 305 | -10/Mines | Build established: Mutant 352 | -10/Mines | Deemed a non-threat by the Exiles lab entrance 352 | -10/Mines | Discovered new exit (range 5) 356 | -10/Mines | Identified exit to Exiles 372 | -10/Mines | Entered Exiles 372 | -10/Exiles | Accompanied by 3 allies 385 | -10/Exiles | Discovered new exit (range 15) 397 | -10/Exiles | Identified exit to Mines 417 | -10/Exiles | Met 8R-AWN 431 | -10/Exiles | Met EX-HEX 466 | -10/Exiles | Met EX-DEC 576 | -10/Exiles | Visited The Gauntlet 713 | -10/Exiles | Discovered exit to Mines (range 14) 779 | -10/Exiles | Met EX-BIN 1115 | -10/Exiles | Aligned with FarCom system 1116 | -10/Exiles | Given EX-Vault access code 1140 | -10/Exiles | Opened EX-Vault 1152 | -10/Exiles | Found Cloak of Protection 1170 | -10/Exiles | Warned to stay clear of 0b10 Research branches 1264 | -10/Exiles | Left Exiles lab with Cloak of Protection 1264 | -10/Exiles | Entered Mines 1264 | -9/Mines | Accompanied by 3 allies 1281 | -9/Mines | Assembled infested the area 1286 | -9/Mines | Assisted by a Guerilla fighting off Assembled 1347 | -9/Mines | Core integrity fell below 50% 1357 | -9/Mines | Core integrity fell below 20% 1358 | -9/Mines | Destroyed by D-53 Grenadier with Mini Grenade Launcher Last Messages --------------- as-18459 destroyed. C-30 ARC bursts open, deploying its payload. D-53 Grenadier unfolds itself. Com. Wheel destroyed. HV Slug penetrates Wall. as-28182 destroyed. Grenade Launcher destroyed. as-65613 destroyed. HV Slug penetrates D-53 Grenadier. D-53 Grenadier suffers critical hit (Destroy). D-53 Grenadier knocked back. HV Slug penetrates D-53 Grenadier. Lgt. Ion Engine destroyed. The unstable cave ceiling collapses. D-53 Grenadier suffers critical hit (Destroy). D-53 Grenadier knocked back. EM Pulse Gun destroyed. OR-FZY(h) destroyed. Lgt. Ion Engine destroyed. The unstable cave ceiling collapses. Map ----- +----------------------------------------------------+ | ?????????????????????????????????????? | | ?????????????????????????????????????? | | ?????????????????????????????????????? | | ?????????????????????????????????????? | | ?????????????????????????????????????? | | ?????????????????????????????????????? | | ?????????????????????????????????????? | | ?????????????????????????????????????? | | ?????????????????????????????????????? | | ?????????????????????????????????????? | | ?????????????????????????????????????? | | ?????????????????????????????????????? | | ?????????????????????????????????????? | | ?????????????????????????????????????? | | ?????????????????????????????????????? | | ?????????????????????????###?????????? | | ????????????????????????## ##????????? | | ??????????##?????????#### ##???????? | | ?????????## ###????### ## ##??????? | | ?????????# ; ###### # ##?????? | | ??????????#; # # ######? | | ??????????# # % ## | | ?????????## = "% | | ???????### d == % " | | ??????## d * % #??? | | ????### <@ # ! #### | | ???## # = %! | | ???# =[ | | ???# # ### | | ???## # ####### ##?? | | ????#### ####????# ##??? | | ??????# ####???????# ##???? | | ??????####????????? ##????? | | ??????????????????#### #?????? | | ?????????????????????# ##?????? | | ????????????????????# #??????? | | ???????????????????# ??????? | | ??????????????????# ## ??????? | | ????????????????? ### ??????? | | ????????????????? ??# ??????? | | ?????????????????## #??# ?????? | | ???????????????????####???# ?????? | | ??????????????????????????## ?????? | | ????????????????????????????####?????? | | ?????????????????????????????????????? | | | | | | | | | | | +----------------------------------------------------+ Best States ------------- Heat Dissipation 25 Energy Generation 10 Energy Capacity 125 Matter Stores 300 Matter Capacity 300 Sight Range 16 Terrain Scan Range 16 Terrain Scan Density 10 Evasion (%) 44 Item Schematics ----------------- None Robot Schematics ------------------ None Fabricated ------------ Nothing Alien Tech Used ----------------- None Achievements -------------- The More The Merrier Challenges ------------ None Game ------ Seed ImprinterFocalBattery Manual? 0 Play Time 00:31:52 Cumulative 6.9 hours Start 2024.04.09 @ 20:41:16 End 2024.04.09 @ 21:21:46 Sessions 1 Manual Loads 0 Difficulty Rogue Special Mode None Game No. 7 Rogue 7 Adventurer 0 Explorer 0 Win Type - Total 0 Types 0/0/0/0/0/0/0/0/0 Lore% 14 Gallery% 9 Achievement% 10 Wizard Run 0 Options --------- Layout 0 ASCII 0 Keyboard 0 Movement Numpad Keybinds 0 Fullscreen 1 Font 18/SmallcapsGlow Map View 76x50 Zoom Use 0% Tactical HUD 0 Map Filters NONE Filters NONE Steam 1 RUN: fb352d4e-1f54-4d2b-a090-1cd8507504e9